[Event "*** MasterClass Titled Tuesday Blitz"]
[Site "Chess.com"]
[Date "2017.09.05"]
[Round "1"]
[White "Art10ECHR"]
[Black "Blitzstream"]
[Result "1-0"]
[WhiteElo "2223"]
[BlackElo "2485"]
[TimeControl "180+2"]
[EndTime "13:10:22 PDT"]
[Termination "Art10ECHR won by checkmate"]

1. e4 {[%clk 0:03:00.5]} 1... d5 {[%clk 0:03:00.7]} 2. Nc3 {[%clk 0:02:59.8]}
2... dxe4 {[%clk 0:03:00.5]} 3. Nxe4 {[%clk 0:03:00.5]} 3... Qd5 {[%clk
0:03:01.6]} 4. Nc3 {[%clk 0:02:55.2]} 4... Qa5 {[%clk 0:03:01.8]} 5. d4 {[%clk
0:02:53.3]} 5... Nf6 {[%clk 0:03:02.7]} 6. Bc4 {[%clk 0:02:52]} 6... Bg4 {[%clk
0:03:03.3]} 7. f3 {[%clk 0:02:49.9]} 7... Bf5 {[%clk 0:03:04.3]} 8. Bd2 {[%clk
0:02:49.9]} 8... Qb6 {[%clk 0:03:01.4]} 9. Nge2 {[%clk 0:02:44.8]} 9... e6
{[%clk 0:03:02.2]} 10. O-O {[%clk 0:02:13.3]} 10... c6 {[%clk 0:02:54.1]} 11.
Bb3 {[%clk 0:02:03.8]} 11... Bd6 {[%clk 0:02:53.5]} 12. Bg5 {[%clk 0:01:53.9]}
12... Nbd7 {[%clk 0:02:52.1]} 13. Ng3 {[%clk 0:01:50.9]} 13... Bg6 {[%clk
0:02:49.6]} 14. Nge4 {[%clk 0:01:52]} 14... Be7 {[%clk 0:02:44.4]} 15. Be3
{[%clk 0:01:49.3]} 15... Qc7 {[%clk 0:02:40.5]} 16. Bf2 {[%clk 0:01:49.5]} 16...
O-O {[%clk 0:02:14]} 17. Bg3 {[%clk 0:01:50.4]} 17... Qb6 {[%clk 0:02:14.1]} 18.
Bf2 {[%clk 0:01:50.6]} 18... Qc7 {[%clk 0:02:14.9]} 19. Re1 {[%clk 0:01:44.9]}
19... Rad8 {[%clk 0:02:14.9]} 20. Qe2 {[%clk 0:01:42.1]} 20... Nb6 {[%clk
0:02:03.1]} 21. Nxf6+ {[%clk 0:01:38.2]} 21... Bxf6 {[%clk 0:02:03.7]} 22. Rad1
{[%clk 0:01:37.1]} 22... Nd5 {[%clk 0:01:49.8]} 23. Ne4 {[%clk 0:01:33.3]} 23...
Be7 {[%clk 0:01:47]} 24. Bg3 {[%clk 0:01:34.6]} 24... Qb6 {[%clk 0:01:47.7]} 25.
c4 {[%clk 0:01:31.4]} 25... Nf6 {[%clk 0:01:46.8]} 26. c5 {[%clk 0:01:31.9]}
26... Qa5 {[%clk 0:01:45.8]} 27. Nd6 {[%clk 0:01:27.7]} 27... Qb4 {[%clk
0:01:25.7]} 28. Qe3 {[%clk 0:01:21.3]} 28... Nd5 {[%clk 0:01:14.7]} 29. Bxd5
{[%clk 0:01:17.2]} 29... cxd5 {[%clk 0:01:16.6]} 30. a3 {[%clk 0:01:18.3]} 30...
Qa4 {[%clk 0:00:47.3]} 31. Nxb7 {[%clk 0:01:17.4]} 31... Rd7 {[%clk 0:00:46.6]}
32. Nd6 {[%clk 0:01:18.6]} 32... Bf6 {[%clk 0:00:41.8]} 33. b4 {[%clk
0:01:15.5]} 33... h5 {[%clk 0:00:35.8]} 34. h3 {[%clk 0:01:12.4]} 34... h4
{[%clk 0:00:35.2]} 35. Be5 {[%clk 0:01:07.8]} 35... Be7 {[%clk 0:00:34.4]} 36.
Rc1 {[%clk 0:01:06.8]} 36... a6 {[%clk 0:00:25.1]} 37. Qc3 {[%clk 0:00:58.3]}
37... Qc6 {[%clk 0:00:23]} 38. Qb3 {[%clk 0:00:55.9]} 38... Ra7 {[%clk
0:00:18.1]} 39. Kh1 {[%clk 0:00:55.3]} 39... Bh7 {[%clk 0:00:17.9]} 40. Bh2
{[%clk 0:00:54]} 40... Bg6 {[%clk 0:00:18.1]} 41. Rc3 {[%clk 0:00:52.9]} 41...
Raa8 {[%clk 0:00:18.5]} 42. Rec1 {[%clk 0:00:53.2]} 42... Rfb8 {[%clk
0:00:19.7]} 43. Rd1 {[%clk 0:00:53.3]} 43... Rf8 {[%clk 0:00:20.6]} 44. Rd2
{[%clk 0:00:54.9]} 44... Rfb8 {[%clk 0:00:21.7]} 45. Rb2 {[%clk 0:00:56.5]}
45... Rd8 {[%clk 0:00:22.7]} 46. a4 {[%clk 0:00:57]} 46... Rdb8 {[%clk
0:00:22.4]} 47. Rc1 {[%clk 0:00:54.1]} 47... Bf8 {[%clk 0:00:20.7]} 48. b5
{[%clk 0:00:53.3]} 48... Qd7 {[%clk 0:00:19.5]} 49. b6 {[%clk 0:00:52.4]} 49...
Qc6 {[%clk 0:00:20.1]} 50. a5 {[%clk 0:00:53]} 50... f6 {[%clk 0:00:20.6]} 51.
Re1 {[%clk 0:00:51]} 51... e5 {[%clk 0:00:21.8]} 52. dxe5 {[%clk 0:00:49.8]}
52... Qxc5 {[%clk 0:00:22.3]} 53. Qb4 {[%clk 0:00:45.5]} 53... Qc6 {[%clk
0:00:18.6]} 54. e6 {[%clk 0:00:41.7]} 54... Re8 {[%clk 0:00:18.7]} 55. Rbe2
{[%clk 0:00:38]} 55... Rad8 {[%clk 0:00:18.3]} 56. e7 {[%clk 0:00:38.2]} 56...
Bd3 {[%clk 0:00:08.3]} 57. Nxe8 {[%clk 0:00:35.6]} 57... Rxe8 {[%clk 0:00:08.9]}
58. exf8=Q+ {[%clk 0:00:35.8]} 58... Rxf8 {[%clk 0:00:10.8]} 59. Re7 {[%clk
0:00:32.9]} 59... Bb5 {[%clk 0:00:10]} 60. Qxh4 {[%clk 0:00:30.8]} 60... Qc3
{[%clk 0:00:10.4]} 61. Qg3 {[%clk 0:00:30.4]} 61... f5 {[%clk 0:00:11.2]} 62.
Qg6 {[%clk 0:00:29]} 62... Bd3 {[%clk 0:00:06.9]} 63. b7 {[%clk 0:00:24.7]}
63... Qb4 {[%clk 0:00:05]} 64. Qxg7# {[%clk 0:00:24.4]} 1-0

[Event "*** MasterClass Titled Tuesday Blitz"]
[Site "Chess.com"]
[Date "2017.09.05"]
[Round "1"]
[White "SavelijTartakover"]
[Black "Saitama_Hero"]
[Result "1-0"]
[WhiteElo "2597"]
[BlackElo "2310"]
[TimeControl "180+2"]
[EndTime "13:10:27 PDT"]
[Termination "SavelijTartakover won by resignation"]

1. d4 {[%clk 0:03:00.9]} 1... d6 {[%clk 0:02:59.8]} 2. c4 {[%clk 0:02:58.7]}
2... f5 {[%clk 0:03:01.7]} 3. Nc3 {[%clk 0:02:56.3]} 3... Nf6 {[%clk 0:03:03.6]}
4. Nf3 {[%clk 0:02:52.1]} 4... g6 {[%clk 0:03:05]} 5. h4 {[%clk 0:02:52.9]} 5...
Bg7 {[%clk 0:03:06.5]} 6. h5 {[%clk 0:02:53.6]} 6... Nxh5 {[%clk 0:03:05.9]} 7.
e4 {[%clk 0:02:54.1]} 7... c5 {[%clk 0:02:41]} 8. dxc5 {[%clk 0:02:44.2]} 8...
dxc5 {[%clk 0:02:13.7]} 9. Qxd8+ {[%clk 0:02:40.2]} 9... Kxd8 {[%clk 0:02:15.6]}
10. Ng5 {[%clk 0:02:40.4]} 10... Ke8 {[%clk 0:02:11.3]} 11. Nb5 {[%clk
0:02:27.4]} 11... Na6 {[%clk 0:02:11]} 12. Be2 {[%clk 0:02:11.3]} 12... h6
{[%clk 0:01:52.9]} 13. Rxh5 {[%clk 0:01:50.6]} 13... gxh5 {[%clk 0:01:54.8]} 14.
Bxh5+ {[%clk 0:01:49.9]} 14... Kf8 {[%clk 0:01:51.4]} 15. Nf7 {[%clk 0:01:37.4]}
15... Nb4 {[%clk 0:01:49]} 16. Nxh8 {[%clk 0:01:19.9]} 16... Nc2+ {[%clk
0:01:13.4]} 17. Kd1 {[%clk 0:01:19.6]} 17... Nxa1 {[%clk 0:01:15.3]} 18. Ng6+
{[%clk 0:01:19.8]} 18... Kf7 {[%clk 0:01:11.7]} 19. Nc7 {[%clk 0:00:55.3]} 19...
Rb8 {[%clk 0:01:07.8]} 20. exf5 {[%clk 0:00:53.6]} 20... Bxf5 {[%clk 0:00:56.4]}
21. Nh4+ {[%clk 0:00:52]} 21... Kf6 {[%clk 0:00:57.5]} 22. Nd5+ {[%clk 0:00:52]}
22... Ke6 {[%clk 0:00:57.6]} 23. Nxf5 {[%clk 0:00:40.5]} 23... Kxf5 {[%clk
0:00:59.5]} 24. g4+ {[%clk 0:00:33.5]} 24... Ke6 {[%clk 0:00:56.8]} 25. Bf4
{[%clk 0:00:33.4]} 25... Rd8 {[%clk 0:00:51.3]} 26. Kc1 {[%clk 0:00:34]} 26...
b5 {[%clk 0:00:51.5]} 27. Nc7+ {[%clk 0:00:22.8]} 27... Kd7 {[%clk 0:00:36.7]}
28. Nxb5 {[%clk 0:00:23.8]} 28... a6 {[%clk 0:00:37]} 29. Nc3 {[%clk 0:00:24.7]}
29... Rf8 {[%clk 0:00:29]} 30. Be3 {[%clk 0:00:22.4]} 30... Bd4 {[%clk
0:00:30.5]} 31. Bxd4 {[%clk 0:00:19.2]} 31... cxd4 {[%clk 0:00:32.4]} 32. Ne4
{[%clk 0:00:20.7]} 32... d3 {[%clk 0:00:29.2]} 33. Kb1 {[%clk 0:00:20.2]} 33...
Rf4 {[%clk 0:00:29.1]} 34. Bg6 {[%clk 0:00:21.3]} 34... e6 {[%clk 0:00:26.9]}
35. b3 {[%clk 0:00:19.6]} 35... Nc2 {[%clk 0:00:25.8]} 36. Kc1 {[%clk
0:00:19.7]} 36... Nb4 {[%clk 0:00:24.2]} 37. Kd2 {[%clk 0:00:20.9]} 37... Rxg4
{[%clk 0:00:23.9]} 38. Nf6+ {[%clk 0:00:21.3]} 38... Ke7 {[%clk 0:00:23.7]} 39.
Nxg4 {[%clk 0:00:22.5]} 39... h5 {[%clk 0:00:24.2]} 40. Ne3 {[%clk 0:00:23.1]}
40... h4 {[%clk 0:00:23.4]} 41. Bxd3 {[%clk 0:00:22.5]} 41... h3 {[%clk
0:00:23.2]} 42. Bf1 {[%clk 0:00:23.4]} 42... h2 {[%clk 0:00:21.8]} 43. Bg2
{[%clk 0:00:24.8]} 43... Nxa2 {[%clk 0:00:22.6]} 44. Ng4 {[%clk 0:00:25.5]}
44... Nb4 {[%clk 0:00:22.7]} 45. Nxh2 {[%clk 0:00:26.1]} 45... Kd6 {[%clk
0:00:21.9]} 46. Nf3 {[%clk 0:00:24.9]} 46... Nc6 {[%clk 0:00:21.4]} 47. Kc3
{[%clk 0:00:24.2]} 47... a5 {[%clk 0:00:22.6]} 48. Nd4 {[%clk 0:00:24.9]} 48...
Ne5 {[%clk 0:00:22.3]} 49. Be4 {[%clk 0:00:19.2]} 49... Ng4 {[%clk 0:00:22.6]}
50. f3 {[%clk 0:00:20.1]} 50... Ne5 {[%clk 0:00:23.8]} 51. f4 {[%clk 0:00:20]}
51... Ng4 {[%clk 0:00:24.1]} 52. f5 {[%clk 0:00:20.9]} 52... exf5 {[%clk
0:00:23.6]} 53. Bxf5 {[%clk 0:00:21.4]} 53... Ne5 {[%clk 0:00:22.7]} 54. Be4
{[%clk 0:00:21.5]} 54... Kc5 {[%clk 0:00:21.7]} 55. Ne6+ {[%clk 0:00:20.3]}
55... Kd6 {[%clk 0:00:23.1]} 56. Bd5 {[%clk 0:00:21.8]} 56... Nd7 {[%clk
0:00:18.5]} 57. Kd4 {[%clk 0:00:22.7]} 57... Nf6 {[%clk 0:00:13.9]} 58. c5+
{[%clk 0:00:23.2]} 58... Kd7 {[%clk 0:00:15]} 59. Bc4 {[%clk 0:00:23.4]} 59...
Ng4 {[%clk 0:00:11.2]} 60. Nf4 {[%clk 0:00:23.8]} 60... Nh6 {[%clk 0:00:12]} 61.
Bb5+ {[%clk 0:00:24.8]} 61... Kc7 {[%clk 0:00:13]} 62. Nd5+ {[%clk 0:00:25.7]}
62... Kb7 {[%clk 0:00:12.7]} 63. c6+ {[%clk 0:00:26.3]} 63... Kc8 {[%clk
0:00:13.7]} 64. Ba6+ {[%clk 0:00:25.8]} 1-0

[Event "*** MasterClass Titled Tuesday Blitz"]
[Site "Chess.com"]
[Date "2017.09.05"]
[Round "1"]
[White "Aariow"]
[Black "Cruel_Yaro"]
[Result "1/2-1/2"]
[WhiteElo "2351"]
[BlackElo "2628"]
[TimeControl "180+2"]
[EndTime "13:10:42 PDT"]
[Termination "Game drawn by repetition"]

1. Nf3 {[%clk 0:03:01.9]} 1... d5 {[%clk 0:02:50.5]} 2. g3 {[%clk 0:03:03]} 2...
g6 {[%clk 0:02:49.9]} 3. Bg2 {[%clk 0:03:03.1]} 3... Bg7 {[%clk 0:02:51.5]} 4.
d4 {[%clk 0:03:02.6]} 4... Nf6 {[%clk 0:02:47]} 5. O-O {[%clk 0:03:03.6]} 5...
O-O {[%clk 0:02:48.5]} 6. c4 {[%clk 0:03:04.8]} 6... c6 {[%clk 0:02:49.1]} 7.
cxd5 {[%clk 0:03:05.2]} 7... Nxd5 {[%clk 0:02:48.5]} 8. e4 {[%clk 0:02:58.7]}
8... Nb6 {[%clk 0:02:47.8]} 9. Nc3 {[%clk 0:02:59.6]} 9... Bg4 {[%clk
0:02:47.9]} 10. Be3 {[%clk 0:02:56.7]} 10... Nc4 {[%clk 0:02:48.7]} 11. Qb3
{[%clk 0:02:55.3]} 11... Nxe3 {[%clk 0:02:48.3]} 12. fxe3 {[%clk 0:02:57.2]}
12... Qb6 {[%clk 0:02:49]} 13. Kh1 {[%clk 0:02:48.5]} 13... Qxb3 {[%clk
0:02:48.9]} 14. axb3 {[%clk 0:02:49.8]} 14... Na6 {[%clk 0:02:47.3]} 15. Ra4
{[%clk 0:02:49.5]} 15... Nc7 {[%clk 0:02:46.3]} 16. e5 {[%clk 0:02:44]} 16... a6
{[%clk 0:02:43.7]} 17. Nd2 {[%clk 0:02:33.5]} 17... Bh6 {[%clk 0:02:43]} 18. Re1
{[%clk 0:02:30.4]} 18... Be6 {[%clk 0:02:41.6]} 19. Raa1 {[%clk 0:02:21.6]}
19... Rad8 {[%clk 0:02:35]} 20. Nc4 {[%clk 0:02:22.3]} 20... Nb5 {[%clk
0:02:30.7]} 21. Na5 {[%clk 0:02:20.5]} 21... Rd7 {[%clk 0:02:28.6]} 22. Na4
{[%clk 0:01:54]} 22... Rc7 {[%clk 0:02:28.9]} 23. Nb6 {[%clk 0:01:51.8]} 23...
Rd8 {[%clk 0:02:26.2]} 24. b4 {[%clk 0:01:50.9]} 24... Kf8 {[%clk 0:02:08.1]}
25. Bf3 {[%clk 0:01:49.3]} 25... Ke8 {[%clk 0:02:08.4]} 26. Kg2 {[%clk
0:01:50.7]} 26... Nxd4 {[%clk 0:02:08.8]} 27. exd4 {[%clk 0:01:47.8]} 27... Rxd4
{[%clk 0:02:10.3]} 28. Rad1 {[%clk 0:01:12.9]} 28... Rxb4 {[%clk 0:02:08.7]} 29.
Nxb7 {[%clk 0:01:12.2]} 29... Rxb7 {[%clk 0:02:06.3]} 30. Bxc6+ {[%clk
0:01:12.3]} 30... Kf8 {[%clk 0:02:07.5]} 31. Bxb7 {[%clk 0:01:11.7]} 31... Rxb6
{[%clk 0:02:08.4]} 32. Bd5 {[%clk 0:01:10.2]} 32... Rxb2+ {[%clk 0:02:08.2]} 33.
Kg1 {[%clk 0:01:11.7]} 33... Bf5 {[%clk 0:01:50.1]} 34. e6 {[%clk 0:01:02.4]}
34... f6 {[%clk 0:01:35]} 35. Bc4 {[%clk 0:01:03.3]} 35... Bd2 {[%clk
0:00:46.2]} 36. Re2 {[%clk 0:00:55.4]} 36... Bc3 {[%clk 0:00:46.3]} 37. Rxb2
{[%clk 0:00:54.6]} 37... Bxb2 {[%clk 0:00:47.3]} 38. Rd8+ {[%clk 0:00:53.3]}
38... Kg7 {[%clk 0:00:47.9]} 39. Ra8 {[%clk 0:00:35.3]} 39... Bd4+ {[%clk
0:00:44.6]} 40. Kf1 {[%clk 0:00:36.6]} 40... Be4 {[%clk 0:00:43.9]} 41. Rxa6
{[%clk 0:00:35.8]} 41... f5 {[%clk 0:00:45.3]} 42. Ke2 {[%clk 0:00:36]} 42...
Kf6 {[%clk 0:00:45.2]} 43. Ra4 {[%clk 0:00:34.7]} 43... Bg1 {[%clk 0:00:43.2]}
44. h4 {[%clk 0:00:32.2]} 44... h5 {[%clk 0:00:43.4]} 45. Rb4 {[%clk 0:00:30.5]}
45... Bc5 {[%clk 0:00:42]} 46. Rb8 {[%clk 0:00:30.1]} 46... Bd6 {[%clk
0:00:42.3]} 47. Rf8+ {[%clk 0:00:30]} 47... Ke5 {[%clk 0:00:41.7]} 48. Rg8
{[%clk 0:00:30.4]} 48... Kd4 {[%clk 0:00:42.3]} 49. Ba2 {[%clk 0:00:28.7]} 49...
f4 {[%clk 0:00:36.1]} 50. gxf4 {[%clk 0:00:28.8]} 50... Bxf4 {[%clk 0:00:38]}
51. Rg7 {[%clk 0:00:26.7]} 51... Bd6 {[%clk 0:00:36.2]} 52. Bb3 {[%clk
0:00:26.6]} 52... Ke5 {[%clk 0:00:35.1]} 53. Rf7 {[%clk 0:00:24.7]} 53... Bf5
{[%clk 0:00:35]} 54. Bc4 {[%clk 0:00:25.2]} 54... Bxe6 {[%clk 0:00:30.7]} 55.
Bxe6 {[%clk 0:00:26.5]} 55... Kxe6 {[%clk 0:00:32.3]} 56. Rf3 {[%clk 0:00:27.8]}
56... Be5 {[%clk 0:00:31.6]} 57. Kd3 {[%clk 0:00:28.9]} 57... Bf6 {[%clk
0:00:32.6]} 58. Rf4 {[%clk 0:00:27.4]} 58... Ke5 {[%clk 0:00:30.7]} 59. Ke3
{[%clk 0:00:24.5]} 59... e6 {[%clk 0:00:30.5]} 60. Kf3 {[%clk 0:00:25.4]} 60...
Be7 {[%clk 0:00:29.5]} 61. Re4+ {[%clk 0:00:26.6]} 61... Kf6 {[%clk 0:00:30]}
62. Rf4+ {[%clk 0:00:27.8]} 62... Kg7 {[%clk 0:00:31]} 63. Re4 {[%clk
0:00:28.9]} 63... Kf7 {[%clk 0:00:32.3]} 64. Rf4+ {[%clk 0:00:30.1]} 64... Bf6
{[%clk 0:00:33.6]} 65. Ke4 {[%clk 0:00:31.2]} 65... e5 {[%clk 0:00:33.1]} 66.
Rf3 {[%clk 0:00:30.3]} 66... Ke6 {[%clk 0:00:32]} 67. Rg3 {[%clk 0:00:31.7]}
67... Kf7 {[%clk 0:00:33.1]} 68. Rf3 {[%clk 0:00:33.1]} 68... Kg7 {[%clk
0:00:34.4]} 69. Rh3 {[%clk 0:00:33.8]} 69... Kh6 {[%clk 0:00:35.7]} 70. Rh1
{[%clk 0:00:34.8]} 70... Kg7 {[%clk 0:00:29.6]} 71. Kd5 {[%clk 0:00:35.7]} 71...
Kf7 {[%clk 0:00:22.1]} 72. Rf1 {[%clk 0:00:36.7]} 72... Ke7 {[%clk 0:00:22.6]}
73. Rg1 {[%clk 0:00:37.9]} 73... Kf7 {[%clk 0:00:22.3]} 74. Rf1 {[%clk
0:00:39.1]} 74... Kg7 {[%clk 0:00:23.4]} 75. Rh1 {[%clk 0:00:39.3]} 75... Kf7
{[%clk 0:00:15]} 76. Rf1 {[%clk 0:00:40.3]} 1/2-1/2

[Event "*** MasterClass Titled Tuesday Blitz"]
[Site "Chess.com"]
[Date "2017.09.05"]
[Round "1"]
[White "WeiYi1999"]
[Black "plouarzel"]
[Result "1-0"]
[WhiteElo "2119"]
[BlackElo "2443"]
[TimeControl "180+2"]
[EndTime "13:12:38 PDT"]
[Termination "WeiYi1999 won by checkmate"]

1. e4 {[%clk 0:02:59.2]} 1... c5 {[%clk 0:02:58.1]} 2. c3 {[%clk 0:02:59.2]}
2... Nf6 {[%clk 0:02:58.5]} 3. e5 {[%clk 0:02:59.4]} 3... Nd5 {[%clk 0:02:59.9]}
4. d4 {[%clk 0:02:59.8]} 4... cxd4 {[%clk 0:03:01.8]} 5. Nf3 {[%clk 0:03:00.4]}
5... Nc6 {[%clk 0:03:02.7]} 6. cxd4 {[%clk 0:03:00.8]} 6... d6 {[%clk
0:03:00.4]} 7. Bc4 {[%clk 0:03:00.8]} 7... Nb6 {[%clk 0:03:00.9]} 8. Bb5 {[%clk
0:03:00.9]} 8... Bd7 {[%clk 0:03:01.6]} 9. exd6 {[%clk 0:03:00.2]} 9... e6
{[%clk 0:03:02]} 10. O-O {[%clk 0:03:00.4]} 10... Bxd6 {[%clk 0:03:02.7]} 11.
Nc3 {[%clk 0:02:58.8]} 11... O-O {[%clk 0:03:04.1]} 12. a3 {[%clk 0:02:57.8]}
12... Ne7 {[%clk 0:03:01.5]} 13. Bd3 {[%clk 0:02:57.7]} 13... Ned5 {[%clk
0:02:41.2]} 14. Ne4 {[%clk 0:02:50.5]} 14... Bf4 {[%clk 0:02:35.5]} 15. g3
{[%clk 0:02:31.8]} 15... Bxc1 {[%clk 0:02:34.2]} 16. Rxc1 {[%clk 0:02:33.7]}
16... Nf6 {[%clk 0:02:00.4]} 17. Ne5 {[%clk 0:02:32.8]} 17... Nbd5 {[%clk
0:01:56.4]} 18. Re1 {[%clk 0:02:21.8]} 18... Rc8 {[%clk 0:01:51.7]} 19. Qd2
{[%clk 0:02:17]} 19... Bc6 {[%clk 0:01:39.4]} 20. Nxc6 {[%clk 0:02:14.9]} 20...
Rxc6 {[%clk 0:01:39.6]} 21. Rxc6 {[%clk 0:02:14.7]} 21... bxc6 {[%clk
0:01:41.5]} 22. Rc1 {[%clk 0:02:15.4]} 22... Qb6 {[%clk 0:01:43]} 23. Nd6 {[%clk
0:02:12.1]} 23... g6 {[%clk 0:01:35.2]} 24. Bf1 {[%clk 0:02:05.8]} 24... Rd8
{[%clk 0:01:28.1]} 25. Nc4 {[%clk 0:02:04.8]} 25... Qc7 {[%clk 0:01:17]} 26. Ne5
{[%clk 0:02:02.8]} 26... Ne7 {[%clk 0:01:15.4]} 27. Bg2 {[%clk 0:01:49.2]} 27...
Qd6 {[%clk 0:00:57.7]} 28. Nxc6 {[%clk 0:01:43.8]} 28... Nxc6 {[%clk 0:00:57.7]}
29. Rxc6 {[%clk 0:01:45.1]} 29... Qxd4 {[%clk 0:00:58.5]} 30. Qxd4 {[%clk
0:01:46]} 30... Rxd4 {[%clk 0:01:00.4]} 31. Bf3 {[%clk 0:01:41.8]} 31... Rd2
{[%clk 0:00:57.9]} 32. b4 {[%clk 0:01:40.9]} 32... Rd3 {[%clk 0:00:59.7]} 33.
Rc8+ {[%clk 0:01:36]} 33... Kg7 {[%clk 0:00:59.3]} 34. Bc6 {[%clk 0:01:37]}
34... Rxa3 {[%clk 0:00:58.9]} 35. Rc7 {[%clk 0:01:36.1]} 35... h5 {[%clk
0:00:53.1]} 36. h3 {[%clk 0:01:32.7]} 36... Ra2 {[%clk 0:00:52]} 37. b5 {[%clk
0:01:33.1]} 37... Kf8 {[%clk 0:00:49]} 38. Rc8+ {[%clk 0:01:30]} 38... Ke7
{[%clk 0:00:50.3]} 39. Rc7+ {[%clk 0:01:30.9]} 39... Kf8 {[%clk 0:00:50.8]} 40.
Rc8+ {[%clk 0:01:31.5]} 40... Kg7 {[%clk 0:00:52.2]} 41. Rc7 {[%clk 0:01:33.3]}
41... g5 {[%clk 0:00:48.7]} 42. Kg2 {[%clk 0:01:30.2]} 42... g4 {[%clk
0:00:45.3]} 43. h4 {[%clk 0:01:31]} 43... Kg6 {[%clk 0:00:46.2]} 44. Kf1 {[%clk
0:01:27.7]} 44... Nd5 {[%clk 0:00:42.8]} 45. Bxd5 {[%clk 0:01:26.6]} 45... exd5
{[%clk 0:00:44.7]} 46. Rd7 {[%clk 0:01:26.8]} 46... Rd2 {[%clk 0:00:29.5]} 47.
Rxa7 {[%clk 0:01:26.7]} 47... Rb2 {[%clk 0:00:31]} 48. Rb7 {[%clk 0:01:23.2]}
48... f6 {[%clk 0:00:31.9]} 49. b6 {[%clk 0:01:22.5]} 49... Kf5 {[%clk
0:00:33.3]} 50. Rb8 {[%clk 0:01:21.1]} 50... Ke4 {[%clk 0:00:34.2]} 51. b7
{[%clk 0:01:18.5]} 51... Kd4 {[%clk 0:00:20.3]} 52. Kg2 {[%clk 0:01:15.7]} 52...
f5 {[%clk 0:00:21.4]} 53. Rf8 {[%clk 0:01:14.6]} 53... Rxb7 {[%clk 0:00:22.3]}
54. Rxf5 {[%clk 0:01:15.8]} 54... Kc4 {[%clk 0:00:23.4]} 55. Rxh5 {[%clk
0:01:15.8]} 55... d4 {[%clk 0:00:24.8]} 56. Rg5 {[%clk 0:01:15.5]} 56... d3
{[%clk 0:00:26.2]} 57. Rxg4+ {[%clk 0:01:15.7]} 57... Kd5 {[%clk 0:00:26]} 58.
Rg8 {[%clk 0:01:16.5]} 58... Ke4 {[%clk 0:00:22.9]} 59. Rd8 {[%clk 0:01:14.9]}
59... Rb2 {[%clk 0:00:15.9]} 60. h5 {[%clk 0:01:12.3]} 60... Rb5 {[%clk
0:00:13.3]} 61. g4 {[%clk 0:01:10.8]} 61... Kf4 {[%clk 0:00:13.1]} 62. Rd4+
{[%clk 0:01:08]} 62... Kg5 {[%clk 0:00:12.3]} 63. Kg3 {[%clk 0:01:08.3]} 63...
Rb3 {[%clk 0:00:12.3]} 64. f4+ {[%clk 0:01:09]} 64... Kf6 {[%clk 0:00:12.4]} 65.
Kh4 {[%clk 0:01:09.7]} 65... Ke6 {[%clk 0:00:12.5]} 66. h6 {[%clk 0:01:10.2]}
66... Kf6 {[%clk 0:00:09.9]} 67. h7 {[%clk 0:01:04.2]} 67... Kg7 {[%clk
0:00:10.2]} 68. Rd7+ {[%clk 0:01:05]} 68... Kh8 {[%clk 0:00:11.8]} 69. f5 {[%clk
0:01:03.5]} 69... d2 {[%clk 0:00:13.1]} 70. Rxd2 {[%clk 0:01:03.2]} 70... Kxh7
{[%clk 0:00:14.2]} 71. Kg5 {[%clk 0:01:03.9]} 71... Rb7 {[%clk 0:00:13.5]} 72.
Rh2+ {[%clk 0:01:04.6]} 72... Kg7 {[%clk 0:00:14.9]} 73. Rh6 {[%clk 0:01:04.7]}
73... Rb4 {[%clk 0:00:16]} 74. Rg6+ {[%clk 0:01:05.6]} 74... Kf7 {[%clk
0:00:17.6]} 75. Rc6 {[%clk 0:01:05.9]} 75... Rb7 {[%clk 0:00:18]} 76. Kh5 {[%clk
0:01:06.8]} 76... Rb1 {[%clk 0:00:17.7]} 77. Ra6 {[%clk 0:01:04.4]} 77... Rc1
{[%clk 0:00:17]} 78. Kg5 {[%clk 0:00:59.7]} 78... Rb1 {[%clk 0:00:17.9]} 79.
Ra7+ {[%clk 0:00:54.8]} 79... Ke8 {[%clk 0:00:19.3]} 80. Kg6 {[%clk 0:00:55]}
80... Rg1 {[%clk 0:00:17.2]} 81. g5 {[%clk 0:00:55.7]} 81... Kd8 {[%clk
0:00:18.4]} 82. f6 {[%clk 0:00:57]} 82... Ra1 {[%clk 0:00:20.1]} 83. Rxa1 {[%clk
0:00:56]} 83... Kd7 {[%clk 0:00:21.6]} 84. Rd1+ {[%clk 0:00:56.5]} 84... Ke6
{[%clk 0:00:22.8]} 85. f7 {[%clk 0:00:57.7]} 85... Ke7 {[%clk 0:00:24.1]} 86.
Kg7 {[%clk 0:00:57.4]} 86... Ke6 {[%clk 0:00:25.5]} 87. f8=Q {[%clk 0:00:58.5]}
87... Ke5 {[%clk 0:00:27.4]} 88. Qf6+ {[%clk 0:00:58.2]} 88... Ke4 {[%clk
0:00:28.7]} 89. Rd4+ {[%clk 0:01:00.4]} 89... Ke3 {[%clk 0:00:29.9]} 90. Qf4+
{[%clk 0:01:02.3]} 90... Ke2 {[%clk 0:00:31.8]} 91. Rd2+ {[%clk 0:01:03.4]}
91... Ke1 {[%clk 0:00:02.3]} 92. Qf2# {[%clk 0:01:05.3]} 1-0